fUST/lending_fUST_20251223
["ID","MTS","AMOUNT","RATE_DAILY","PERIOD"]
[399550486,1766479838521,-500.0,8.785e-05,2]
[399550487,1766479838531,-298.69737474,8.785e-05,2]
[399551068,1766479846388,-201.30262526,8.785e-05,2]
[399551069,1766479846398,-500.0,8.785e-05,2]
[399551070,1766479846407,-14.13096508,8.785e-05,2]
[399551075,1766480218233,150.0,0.00014,30]
[399551076,1766480483622,-300.0,8.169e-05,2]
[399551077,1766480483655,-335.0,8.17e-05,2]
[399551078,1766480483689,-535.0,8.17e-05,2]
[399551079,1766480483721,-500.0,8.17e-05,2]
[399551080,1766480483753,-419.92744145,8.17e-05,2]
[399551081,1766480483786,-500.0,8.17e-05,2]
[399551082,1766480483819,-320.1451171,8.17e-05,2]
[399551083,1766480483943,-179.8548829,8.17e-05,2]
[399551084,1766480744459,3850.67967701,0.000154,120]
[399551116,1766481038511,-300.0,8.165e-05,2]
[399551117,1766481038521,-500.0,8.165e-05,2]
[399551118,1766481038531,-232.35128255,8.165e-05,2]
[399551119,1766481038564,-267.64871745,8.165e-05,2]
[399551120,1766481038887,-500.0,8.165e-05,2]
[399551121,1766481038940,-500.0,8.165e-05,2]
[399551122,1766481038950,-500.0,8.165e-05,2]
[399551123,1766481038959,-500.0,8.165e-05,2]
[399551124,1766481038969,-500.0,8.165e-05,2]
[399551125,1766481038978,-500.0,8.165e-05,2]
[399551126,1766481038988,-500.0,8.165e-05,2]
[399551127,1766481038997,-500.0,8.165e-05,2]
[399551128,1766481039008,-644.8977364,8.165e-05,2]
[399551129,1766481039018,-500.0,8.165e-05,2]
[399551130,1766481039028,-500.0,8.165e-05,2]
[399551131,1766481039037,-500.0,8.165e-05,2]
[399551132,1766481039047,-500.0,8.165e-05,2]
[399551133,1766481039057,-500.0,8.165e-05,2]
[399551134,1766481039067,-500.0,8.165e-05,2]
[399551135,1766481039077,-500.0,8.165e-05,2]
[399551136,1766481039086,-500.0,8.165e-05,2]
[399551137,1766481039096,-500.0,8.165e-05,2]
[399551138,1766481039105,-500.0,8.165e-05,2]
[399551139,1766481039115,-500.0,8.165e-05,2]
[399551140,1766481039130,-500.0,8.165e-05,2]
[399551141,1766481039140,-628.91888504,8.165e-05,2]
[399551142,1766481039150,-439.61998348,8.165e-05,2]
[399551143,1766481039159,-22470.80572764,8.166e-05,2]
[399551144,1766481039169,-150.0,8.167e-05,2]
[399551145,1766481039179,-31159.49054,8.173e-05,2]
[399551146,1766481039188,-360.17674145,8.219e-05,2]
[399551147,1766481039198,-300.0,8.336e-05,2]
[399551148,1766481039208,-300.0,8.336e-05,2]
[399551149,1766481039218,-300.0,8.336e-05,2]
[399551150,1766481039228,-300.0,8.336e-05,2]
[399551151,1766481039238,-300.0,8.336e-05,2]
[399551152,1766481039247,-300.0,8.336e-05,2]
[399551153,1766481039257,-300.0,8.336e-05,2]
[399551154,1766481039266,-300.0,8.336e-05,2]
[399551155,1766481039276,-300.0,8.336e-05,2]
[399551156,1766481039286,-300.0,8.336e-05,2]
[399551157,1766481039295,-300.0,8.336e-05,2]
[399551158,1766481039305,-300.0,8.336e-05,2]
[399551159,1766481039315,-300.0,8.336e-05,2]
[399551160,1766481039325,-300.0,8.336e-05,2]
[399551161,1766481039335,-300.0,8.336e-05,2]
[399551162,1766481039345,-200.0,8.767e-05,2]
[399551163,1766481039354,-600.0,8.959e-05,2]
[399551164,1766481039364,-150.0,9.795e-05,2]
[399551165,1766481039374,-720.0,9.854e-05,2]
[399551166,1766481039384,-177.0,0.00010167,2]
[399551167,1766481039394,-4216.1650392,0.00010205,2]
[399551168,1766481039404,-176.85,0.00010262,2]
[399551169,1766481039413,-265.27,0.00010728,2]
[399551170,1766481039423,-864.0,0.0001084,2]
[399551171,1766481039432,-318.84932625,0.00011108,2]
[399551172,1766481039442,-353.7,0.00011194,2]
[399551173,1766481039451,-533.88981491,0.00011381,2]
[399551174,1766481039461,-2579.17784983,0.00011381,2]
[399551175,1766481039470,-442.12,0.00011661,2]
[399551176,1766481039480,-227.03598265,0.00011693,2]
[399551177,1766481039489,-192.95247861,0.00011693,2]
[399551178,1766481039499,-328.14965036,0.0001176,2]
[399551179,1766481039509,-1000.0,0.00011924,2]
[399551180,1766481039518,-553.64373807,0.00011929,2]
[399551181,1766481039528,-2674.60743027,0.00011929,2]
[399551182,1766481039538,-12602.8928871,0.00012,2]
[399551183,1766481039548,-434.73332358,0.00012,2]
[399551184,1766481039558,-10030.02369151,0.00012,2]
[399551185,1766481039567,-164.0,0.00012,2]
[399551186,1766481039576,-5000.0,0.00012,2]
[399551187,1766481039586,-259.46969446,0.0001211,2]
[399551188,1766481039595,-530.55,0.00012127,2]
[399551189,1766481039606,-204.0,0.00012167,2]
[399551190,1766481039616,-151.0,0.000122,2]
[399551191,1766481039629,-151.0,0.000122,2]
[399551192,1766481039639,-151.0,0.000122,2]
[399551193,1766481039650,-151.0,0.000122,2]
[399551194,1766481039659,-151.0,0.000122,2]
[399551195,1766481039669,-151.0,0.000122,2]
[399551196,1766481039679,-151.0,0.000122,2]
[399551197,1766481039688,-151.0,0.000122,2]
[399551198,1766481039698,-151.0,0.000122,2]
[399551199,1766481039708,-151.0,0.000122,2]
[399551200,1766481039718,-15191.31563658,0.00012209,2]
[399551201,1766481039728,-246878.04512516,0.00012229,2]
[399551208,1766481040775,-12123.84522437,0.00012229,2]
[399551209,1766481040787,-3435.90441041,0.00012229,2]
[399551216,1766481043584,-6770.58491379,0.00012229,2]
[399551240,1766481046607,-285.19134149,0.00012229,2]
[399551250,1766481902196,150.54,6.892e-05,2]
[399551251,1766482028358,636.65,0.00014,30]
[399551285,1766482238550,-375.03689614,8.893e-05,2]
[399551286,1766482238560,-150.0,8.918e-05,2]
[399551287,1766482238570,-150.0,9.784e-05,2]
[399551288,1766482238579,-150.0,0.0001021,2]
[399551289,1766482238589,-192.02,0.00010716,2]
[399551290,1766482238598,-177.0,0.00010918,2]
[399551291,1766482238609,-256.03,0.00011182,2]
[399551292,1766482238618,-320.04,0.00011648,2]
[399551293,1766482238627,-2579.17784983,0.00011763,2]
[399551294,1766482238637,-346.96714704,0.00012,2]
[399551295,1766482238646,-405.01597619,0.00012,2]
[399551296,1766482238656,-384.05,0.00012114,2]
[399551297,1766482238665,-296.0569277,0.00012125,2]
[399551298,1766482238674,-218.76643357,0.00012125,2]
[399551299,1766482238684,-300.0,0.00012127,2]
[399551300,1766482238693,-300.0,0.00012127,2]
[399551301,1766482238702,-252.12371901,0.00012128,2]
[399551302,1766482238711,-307.73398844,0.00012128,2]
[399551303,1766482238720,-500.0,0.00012128,2]
[399551304,1766482238729,-292.10209834,0.00012128,2]
[399551305,1766482238738,-571.65530404,0.00012128,2]
[399551306,1766482238747,-182.38023898,0.00012128,2]
[399551307,1766482238757,-43201.23053163,0.00012129,2]
[399551622,1766482243877,-800.0,0.00012129,2]
[399551809,1766483285488,1372.16,0.000154,120]
[399552173,1766483437788,-150.0,8.947e-05,2]
[399552174,1766483437797,-150.0,9.933e-05,2]
[399552175,1766483437807,-150.0,0.00010406,2]
[399552176,1766483437818,-26.32654036,0.00010879,2]
[399553045,1766484631785,-150.0,9.889e-05,2]
[399553047,1766484631796,-150.0,0.00010134,2]
[399553049,1766484631815,-150.0,0.00010378,2]
[399553051,1766484631836,-150.0,0.00010769,2]
[399553053,1766484631852,-300.0,0.00010945,2]
[399553055,1766484631864,-300.0,0.00010945,2]
[399553058,1766484631873,-172.0,0.00010945,2]
[399553060,1766484631883,-887.0,0.00010945,2]
[399553061,1766484631894,-307.50318271,0.00010946,2]
[399553063,1766484631904,-256.25265226,0.00010946,2]
[399553065,1766484631914,-368.63481543,0.00010946,2]
[399553067,1766484631923,-333.47475266,0.00010946,2]
[399553069,1766484631932,-380.73288903,0.00010946,2]
[399553071,1766484631942,-165.49,0.00011302,2]
[399553073,1766484631952,-206.86,0.00011773,2]
[399553074,1766484631962,-283.87605003,0.00011828,2]
[399553076,1766484631971,-272.55819562,0.00011828,2]
[399553077,1766484631981,-4997.33387092,0.00011829,2]
[399553081,1766484638207,-463.70271286,0.00011829,2]
[399553082,1766484638218,-4240.27146611,0.00011829,2]
[399553083,1766484638229,-2044.97081546,0.00011829,2]
[399553086,1766484640014,-28977.64940249,0.00011829,2]
[399553138,1766484642971,-560.0,0.00011829,2]
[399553153,1766484643109,-21072.3654202,0.00011829,2]
[399553398,1766484645939,-4101.2795482,0.00011829,2]
[399553422,1766485831841,-150.0,9.648e-05,2]
[399553423,1766485831851,-150.0,9.906e-05,2]
[399553424,1766485831860,-150.0,0.00010377,2]
[399553425,1766485831870,-150.0,0.00010849,2]
[399553426,1766485831879,-150.0,0.00011321,2]
[399553427,1766485831889,-177.0,0.00011648,2]
[399553428,1766485831899,-2579.17784983,0.00011722,2]
[399553429,1766485831908,-198.71323502,0.00011728,2]
[399553430,1766485831918,-190.79073694,0.00011728,2]
[399553431,1766485831927,-10689.37466299,0.00011729,2]
[399553452,1766485838035,-700.31182566,0.00011729,2]
[399553462,1766485838147,-3832.64918665,0.00011729,2]
[399553465,1766485838159,-461.985,0.00011729,2]
[399553467,1766485838170,-3791.04653668,0.00011729,2]
[399553533,1766485843706,-4635.43008,0.00011729,2]
[399553535,1766485843719,-7728.459,0.00011729,2]
[399553541,1766485843764,-3965.18829825,0.00011729,2]
[399553674,1766485846741,-34868.33318735,0.00011729,2]
[399553677,1766486646558,10000.0,0.000154,120]
[399553701,1766487038339,-150.0,9.2e-05,2]
[399553702,1766487038349,-150.0,9.2e-05,2]
[399553703,1766487038358,-300.0,9.479e-05,2]
[399553704,1766487038368,-300.0,9.507e-05,2]
[399553705,1766487038377,-546.26374761,9.548e-05,2]
[399553706,1766487038666,-150.0,9.639e-05,2]
[399553707,1766487038687,-150.0,0.00010077,2]
[399553708,1766487038697,-150.0,0.00010515,2]
[399553709,1766487038707,-372.63882728,0.00010676,2]
[399553710,1766487038716,-174.28,0.00010953,2]
[399553711,1766487038725,-177.0,0.000112,2]
[399553712,1766487038735,-500.0,0.00011265,2]
[399553713,1766487038744,-191.01972692,0.00011265,2]
[399553759,1766487040452,-308.98027308,0.00011265,2]
[399553761,1766487040462,-500.0,0.00011265,2]
[399553762,1766487040471,-444.01556011,0.00011265,2]
[399553765,1766487040482,-13210.11707068,0.00011266,2]
[399553767,1766487040496,-29013.05160997,0.00011266,2]
[399553769,1766487040506,-209.14,0.00011391,2]
[399553771,1766487040517,-218.76643358,0.00011592,2]
[399553773,1766487040527,-2579.17784983,0.00011617,2]
[399553775,1766487040536,-533.88981491,0.00011622,2]
[399553777,1766487040546,-26015.40911219,0.00011629,2]
[399554220,1766487149658,-1000.0,0.00038235,30]
[399554223,1766487149690,-993.20562467,0.00038235,30]
[399554225,1766487149720,-502.72080405,0.00038235,30]
[399554227,1766487149748,-153.09827839,0.00038235,30]
[399554229,1766487149776,-655.76764592,0.00038235,30]
[399554231,1766487149805,-583.46700048,0.00038235,30]
[399554233,1766487149832,-1013.41947612,0.00038235,30]
[399554235,1766487149861,-339.20463697,0.00038235,30]
[399554237,1766487149890,-344.7656292,0.00038235,30]
[399554239,1766487149918,-190.00449141,0.00038235,30]
[399554241,1766487149947,-779.55311188,0.00038235,31]
[399554243,1766487149979,-153.51885128,0.00038235,30]
[399554245,1766487150007,-157.175963,0.00038235,30]
[399554247,1766487150037,-1000.0,0.00038235,120]
[399554250,1766487150065,-150.0,0.00038235,120]
[399554252,1766487150094,-150.0,0.00038235,120]
[399554254,1766487150123,-150.0,0.00038235,120]
[399554256,1766487150153,-150.0,0.00038235,120]
[399554258,1766487150182,-150.0,0.00038235,120]
[399554260,1766487150213,-150.0,0.00038235,120]
[399554262,1766487150245,-150.0,0.00038235,120]
[399554264,1766487150278,-150.0,0.00038235,120]
[399554266,1766487150308,-150.0,0.00038235,120]
[399554269,1766487150338,-150.0,0.00038235,120]
[399554271,1766487150367,-150.0,0.00038235,120]
[399554273,1766487150394,-150.0,0.00038235,120]
[399554275,1766487150423,-206.61549968,0.00038235,120]
[399554277,1766487150452,-1230.59327201,0.00038235,120]
[399554279,1766487150481,-786.47088,0.00038235,60]
[399554281,1766487150510,-1031.79375,0.00038235,60]
[399554283,1766487150539,-786.47088,0.00038235,60]
[399554285,1766487150568,-786.47088,0.00038235,60]
[399554288,1766487150597,-786.47088,0.00038235,60]
[399554290,1766487150625,-786.47088,0.00038235,60]
[399554292,1766487150654,-500.0,0.00038235,120]
[399554294,1766487150683,-500.0,0.00038235,120]
[399554296,1766487150712,-500.0,0.00038235,120]
[399554298,1766487150741,-412.60419805,0.00038235,120]
[399554300,1766487150769,-3000.0,0.00038235,120]
[399554302,1766487150797,-477.12317593,0.00038235,120]
[399554304,1766487150826,-2000.0,0.00038235,120]
[399554306,1766487150853,-2000.0,0.00038235,120]
[399554308,1766487150881,-2000.0,0.00038235,120]
[399554309,1766487150909,-2000.0,0.00038235,120]
[399554310,1766487150937,-2000.0,0.00038235,120]
[399554311,1766487150968,-2000.0,0.00038235,120]
[399554312,1766487151002,-5007.0,0.00038235,30]
[399554313,1766487151032,-502.64571752,0.00038235,120]
[399554314,1766487151061,-2221.82153556,0.00038235,120]
[399554315,1766487151090,-1326.67349109,0.00038235,120]
[399554316,1766487151119,-287.07395396,0.00038235,120]
[399554318,1766487151156,-1549.04596741,0.00038235,30]
[399554320,1766487151188,-1228.89588518,0.00038235,30]
[399554322,1766487151221,-454.83493141,0.00038235,120]
[399554324,1766487151254,-1006.44334821,0.00038235,120]
[399554326,1766487151287,-1937.05669183,0.00038235,60]
[399554329,1766487151319,-955.70826562,0.00038235,120]
[399554331,1766487151349,-923.81937806,0.00038235,60]
[399554333,1766487151378,-404.22916829,0.00038235,120]
[399554335,1766487151407,-882.38449558,0.00038235,120]
[399554337,1766487151436,-366.62734672,0.00038235,120]
[399554339,1766487151465,-721.45151481,0.00038235,120]
[399554341,1766487151493,-1612.32007499,0.00038235,30]
[399554343,1766487151521,-240.82074905,0.00038235,120]
[399554346,1766487151549,-252.60271093,0.00038235,120]
[399554348,1766487151577,-1201.98010377,0.00038235,30]
[399554350,1766487151606,-1152.92353669,0.00038235,120]
[399554352,1766487151634,-1422.72318286,0.00038235,120]
[399554354,1766487151663,-1912.05680128,0.00038235,30]
[399554356,1766487151690,-578.49580413,0.00038235,120]
[399554358,1766487151720,-400.0,0.00038235,120]
[399554360,1766487151748,-1051.31362657,0.00038235,120]
[399554362,1766487151776,-1496.49160343,0.00038235,120]
[399554364,1766487151805,-1501.26159272,0.00038235,120]
[399554367,1766487151833,-921.46389467,0.00038235,120]
[399554369,1766487151862,-1573.59172896,0.00038235,120]
[399554371,1766487151890,-1928.35803338,0.00038235,60]
[399554373,1766487151924,-1637.37260549,0.00038235,120]
[399554375,1766487151955,-1226.6990516,0.00038235,30]
[399554377,1766487151987,-544.90606252,0.00038235,120]
[399554380,1766487152020,-225.20140516,0.00038235,120]
[399554382,1766487152050,-330.41930394,0.00038235,120]
[399554384,1766487152081,-568.32953454,0.00038235,120]
[399554386,1766487152112,-207.86007162,0.00038235,120]
[399554389,1766487152145,-169.45271341,0.00038235,120]
[399554391,1766487152180,-553.93006288,0.00038235,120]
[399554393,1766487152216,-2077.84423388,0.00038235,120]
[399554395,1766487152250,-1054.71296405,0.00038235,120]
[399554398,1766487152281,-627.84573267,0.00038235,120]
[399554400,1766487152313,-1566.38577497,0.00038235,30]
[399554413,1766487152617,-282.30166063,0.00038235,60]
[399554415,1766487152649,-368.76644786,0.00038235,120]
[399554417,1766487152680,-1833.00871568,0.00038235,120]
[399554419,1766487152709,-358.72629551,0.00038235,120]
[399554421,1766487152739,-177.94105378,0.00038235,120]
[399554424,1766487152768,-1029.32331648,0.00038235,60]
[399554426,1766487152796,-509.09784857,0.00038235,120]
[399554428,1766487152826,-1209.57568866,0.00038235,120]
[399554430,1766487152854,-628.92606238,0.00038235,120]
[399554432,1766487152883,-2034.60199683,0.00038235,120]
[399554434,1766487152911,-163.15009623,0.00038235,120]
[399554437,1766487152944,-1617.14736031,0.00038235,30]
[399554439,1766487152972,-755.57095973,0.00038235,120]
[399554441,1766487153005,-873.54654395,0.00038235,120]
[399554443,1766487153034,-1869.94728019,0.00038235,60]
[399554445,1766487153064,-1308.57364511,0.00038235,120]
[399554447,1766487153094,-1000.59385188,0.00038235,120]
[399554450,1766487153123,-1593.44267624,0.00038235,120]
[399554452,1766487153152,-1000000.0,0.00038235,30]
[399554454,1766487153185,-1000.0,0.00038235,120]
[399554456,1766487153215,-1530.0,0.00038235,120]
[399554458,1766487153246,-431.61590219,0.00038235,30]
[399554461,1766487153277,-4000.0,0.00038235,30]
[399554463,1766487153310,-14413.03530228,0.00038235,90]
[399554465,1766487153340,-1734.0,0.00038235,64]
[399554467,1766487153369,-4274.27497052,0.00038235,31]
[399554470,1766487153400,-260.8834877,0.00038235,120]
[399554472,1766487153432,-2000.0,0.00038235,120]
[399554474,1766487153461,-1693.3339337,0.00038235,120]
[399554476,1766487153489,-6402.0,0.00038235,30]
[399554478,1766487153517,-1000.0,0.00038235,120]
[399554480,1766487153545,-341491.99448581,0.00038235,120]
[399554482,1766487153573,-338.43791514,0.00038235,120]
[399554483,1766487153600,-5000.0,0.00038235,120]
[399554484,1766487153629,-20000.0,0.00038235,60]
[399554485,1766487153659,-2000.0,0.00038235,120]
[399554486,1766487153687,-2000.0,0.00038235,120]
[399554487,1766487153716,-2000.0,0.00038235,120]
[399554488,1766487153746,-2000.0,0.00038235,120]
[399554489,1766487153774,-2000.0,0.00038235,120]
[399554491,1766487153803,-7657.48703106,0.00038235,120]
[399554493,1766487153842,-17224.49910914,0.00038235,120]
[399554496,1766487153876,-100000.0,0.00038235,90]
[399554498,1766487153906,-112520.0,0.00038235,90]
[399554500,1766487153937,-70000.0,0.00038235,120]
[399554502,1766487153973,-1356.60692879,0.00038235,120]
[399554505,1766487154006,-201440.90112361,0.00038235,30]
[399554507,1766487154039,-2067878.84023298,0.00038235,30]
[399554509,1766487154072,-40533.06516445,0.00038235,35]
[399554511,1766487154105,-5446.0,0.00038235,60]
[399554513,1766487154140,-500.0,0.00038235,120]
[399554516,1766487154182,-350.24822808,0.00038235,120]
[399554518,1766487154218,-500.0,0.00038235,120]
[399554521,1766487154255,-500.0,0.00038235,120]
[399554523,1766487154292,-187.00000041,0.00038235,120]
[399554525,1766487154328,-200.0,0.00038235,120]
[399554528,1766487154363,-429.46448898,0.00038235,120]
[399554530,1766487154396,-20000.0,0.00038235,120]
[399554532,1766487154430,-10000.0,0.00038235,30]
[399554535,1766487154463,-5351.0,0.00038235,120]
[399554537,1766487154496,-9858.0,0.00038235,120]
[399554539,1766487154530,-500.0,0.00038235,120]
[399554542,1766487154564,-500.0,0.00038235,120]
[399554544,1766487154598,-500.0,0.00038235,120]
[399554546,1766487154631,-500.0,0.00038235,120]
[399554549,1766487154664,-500.0,0.00038235,120]
[399554551,1766487154696,-1821.60926415,0.00038235,30]
[399554553,1766487154728,-75362.33531412,0.00038235,120]
[399554555,1766487154758,-36142.07922859,0.00038235,30]
[399554558,1766487154790,-29078.99954683,0.00038235,30]
[399554560,1766487154821,-500.0,0.00038235,120]
[399554562,1766487154853,-507.0,0.00038235,120]
[399554565,1766487154887,-969.40270553,0.00038235,30]
[399554567,1766487154916,-5088.0,0.00038235,120]
[399554569,1766487154948,-25418.0,0.00038235,30]
[399554571,1766487154979,-58535.93809849,0.00038235,120]
[399554574,1766487155012,-20000.0,0.00038235,30]
[399554576,1766487155044,-21837.80306483,0.00038235,120]
[399554578,1766487155076,-5396.85092701,0.00038235,30]
[399554580,1766487155106,-6418.82113943,0.00038235,30]
[399554583,1766487155137,-18511.34642203,0.00038235,30]
[399554585,1766487155168,-18143.67802044,0.00038235,30]
[399554587,1766487155200,-41865.74802178,0.00038235,30]
[399554589,1766487155231,-262088.11472229,0.00038235,30]
[399554592,1766487155262,-16625.33565909,0.00038235,30]
[399554594,1766487155293,-5255.78076221,0.00038235,30]
[399554596,1766487155322,-78738.81042678,0.00038235,30]
[399554599,1766487155354,-82807.35641109,0.00038235,30]
[399561249,1766487484451,150.0,3.005e-05,2]
[399565522,1766488232311,-150.0,9.034e-05,2]
[399565523,1766488232322,-150.0,9.64e-05,2]
[399565524,1766488232331,-150.0,0.00010099,2]
[399565525,1766488232341,-150.0,0.00010558,2]
[399565526,1766488232350,-150.0,0.00011017,2]
[399565527,1766488232359,-177.0,0.00011034,2]
[399565529,1766488232368,-150.0,0.00011476,2]
[399565530,1766488232377,-230.37279329,0.00011526,2]
[399565562,1766488243581,-969.62720671,0.00011526,2]
[399565563,1766488243592,-298.0,0.00011526,2]
[399565564,1766488243605,-241.0,0.00011526,2]
[399565565,1766488243615,-216.0017289,0.00011526,2]
[399565566,1766488243624,-51923.51194972,0.00011527,2]
[399565567,1766488243637,-1313.0,0.00011527,2]
[399565568,1766488243648,-11940.89469203,0.00011527,2]
[399565569,1766488243659,-596.16442264,0.00011527,2]
[399565575,1766488246605,-2281.28905335,0.00011527,2]
[399565678,1766489438552,-150.0,8.589e-05,2]
[399565679,1766489438562,-150.0,8.723e-05,2]
[399565680,1766489438572,-150.0,8.939e-05,2]
[399565681,1766489438581,-150.0,9.365e-05,2]
[399565682,1766489438591,-150.0,9.791e-05,2]
[399565683,1766489438600,-150.0,0.00010216,2]
[399565684,1766489438609,-150.0,0.00010642,2]
[399565685,1766489438618,-177.0,0.00010723,2]
[399565686,1766489438628,-4027.9375323,0.0001124,2]
[399565687,1766489438636,-20505.26779512,0.00011327,2]
[399565816,1766489444312,-8720.53487676,0.00011327,2]
[399565860,1766490637683,-546.0,8.99e-05,2]
[399565861,1766490637696,-150.0,8.994e-05,2]
[399565862,1766490637710,-150.0,9.208e-05,2]
[399565863,1766490637723,-150.0,9.647e-05,2]
[399565864,1766490637736,-150.0,0.00010085,2]
[399565865,1766490637749,-177.0,0.00010994,2]
[399565866,1766490637761,-200.15664859,0.00011,2]
[399565867,1766490637773,-596.0,0.00011226,2]
[399565868,1766490637785,-300.0,0.00011226,2]
[399565869,1766490637797,-119053.98936342,0.00011227,2]
[399565870,1766490637811,-449.31152088,0.00011227,2]
[399566070,1766490642890,-9677.8185,0.00011227,2]
[399566114,1766491831716,-150.0,8.976e-05,2]
[399566115,1766491831727,-150.0,8.994e-05,2]
[399566116,1766491831736,-24.065,9.423e-05,2]
[399566117,1766491831747,-125.935,9.423e-05,2]
[399566118,1766491831757,-150.0,9.904e-05,2]
[399566119,1766491831767,-278.0,9.999e-05,2]
[399566120,1766491831776,-1200.0,9.999e-05,2]
[399566121,1766491831785,-553.41466766,0.0001,2]
[399566134,1766491837940,-3000.0,0.0001,2]
[399566147,1766491840113,-432.21659657,0.0001,2]
[399566270,1766491846153,-220.59469364,9.9e-05,2]
[399566271,1766491846163,-1116.78622136,0.0001,2]
[399566272,1766491846175,-693.15367408,0.0001,2]
[399566327,1766493031995,-150.0,7.998e-05,2]
[399566328,1766493032004,-300.0,7.999e-05,2]
[399566329,1766493032013,-15.60265351,7.999e-05,2]
[399566331,1766493032026,-284.39734649,7.999e-05,2]
[399566333,1766493032036,-300.0,7.999e-05,2]
[399566334,1766493032047,-320.83263773,7.999e-05,2]
[399566339,1766493038019,-488.57536421,7.999e-05,2]
[399566340,1766493038030,-390.59199806,7.999e-05,2]
[399566341,1766493038040,-300.0,7.999e-05,2]
[399566342,1766493038049,-2375.15239893,8e-05,2]
[399566390,1766493047012,-7649.62441311,8e-05,2]
[399566391,1766493047023,-425.82534972,9.991e-05,2]
[399566392,1766493047033,-500.0,9.991e-05,2]
[399566393,1766493047043,-500.0,9.991e-05,2]
[399566394,1766493047053,-500.0,9.991e-05,2]
[399566395,1766493047064,-500.0,9.991e-05,2]
[399566396,1766493047074,-398.86061622,9.991e-05,2]
[399566397,1766493047086,-490.6783959,9.991e-05,2]
[399566398,1766493047097,-500.0,9.991e-05,2]
[399566399,1766493047109,-500.0,9.991e-05,2]
[399566400,1766493047119,-500.0,9.991e-05,2]
[399566401,1766493047130,-22067.58840627,9.992e-05,2]
[399566402,1766493047141,-223.79750923,9.992e-05,2]
[399566403,1766493047151,-197.28509511,9.992e-05,2]
[399566404,1766493047160,-177.0,9.998e-05,2]
[399566405,1766493047170,-3616.19884033,0.0001,2]
[399566406,1766493047179,-165.46298927,0.0001032,2]
[399566407,1766493047189,-150.0,0.00010476,2]
[399566408,1766493047199,-150.0,0.00010975,2]
[399566409,1766493047209,-204.76348387,0.00011227,2]
[399566410,1766493047219,-314.1395756,0.00011265,2]
[399566411,1766493047228,-377.292822,0.00011265,2]
[399566412,1766493047238,-725.01738361,0.00011265,2]
[399566417,1766494138622,173.92,0.00014,30]
[399566439,1766494232039,-5000.0,8.674e-05,2]
[399566441,1766494232049,-542.0,8.674e-05,2]
[399566443,1766494232059,-150.0,8.718e-05,2]
[399566445,1766494232068,-538.8215256,8.762e-05,2]
[399566501,1766494238156,-235.9725887,8.762e-05,2]
[399566502,1766494238166,-150.0,8.98e-05,2]
[399566503,1766494238176,-232.81,9.407e-05,2]
[399566504,1766494238186,-349.21,9.835e-05,2]
[399566505,1766494238195,-196.95,0.0001,2]
[399566506,1766494238205,-1200.0,0.00010191,2]
[399566507,1766494238215,-176.89179962,0.00010191,2]
[399566508,1766494238226,-123.10820038,0.00010191,2]
[399566509,1766494238236,-45007.07405428,0.00010192,2]
[399566510,1766494238246,-200.0,0.00010192,2]
[399566511,1766494238255,-1200.0,0.00010192,2]
[399566512,1766494238264,-196.95,0.000102,2]
[399566513,1766494238273,-465.61,0.00010263,2]
[399566514,1766494238283,-4012.25139517,0.00010299,2]
[399566515,1766494238294,-833.22931885,0.00010299,2]
[399566516,1766494238303,-196.95,0.000104,2]
[399566517,1766494238313,-582.02,0.0001069,2]
[399566518,1766494238322,-177.0,0.00010718,2]
[399566519,1766494238331,-994.13365696,0.0001104,2]
[399566520,1766494238341,-368.20569669,0.00011102,2]
[399566521,1766494238350,-444.15732962,0.00011102,2]
[399566522,1766494238360,-698.42,0.00011118,2]
[399566523,1766494238369,-480.0,0.00011209,2]
[399566524,1766494238378,-1680.0,0.0001121,2]
[399566525,1766494238388,-809.70715479,0.00011265,2]
[399566526,1766494238397,-151.0,0.00011265,2]
[399566527,1766494238406,-151.0,0.00011265,2]